Workbook

Sheet Matériaux Bruts et raffinés
A2: Minérais Brut | B2: Valeur en cours Minerais Brut (Credit/kg) | C2: Minerais Raffinés | D2: Minerais Raffinés (kg) pour 1kg de Minerais brut traité | E2: Valeur de base Minerais Raffinés (Crédit/kg) | F2: Majoration (10%) (Raffinage (10%)) | G2: Valeur en cours selon le site
A3: Pierre | B3: 1 | C3: Gravier | D3: 0.9 | E3: =B3/D3 -> 1.111111111 | F3: =E3*1.1 -> 1.222222222 | G3: =ROUNDUP(F3,0) -> 2
A4: Fer | B4: 3 | C4: Lingot de Fer | D4: 0.7 | E4: =B4/D4 -> 4.285714286 | F4: =E4*1.1 -> 4.714285714 | G4: =ROUNDUP(F4,0) -> 5
A5: Argent | B5: 9 | C5: Lingot d'Argent | D5: 0.1 | E5: 90 | F5: 99 | G5: =ROUNDUP(F5,0) -> 99
A6: Cobalt | B6: 7 | C6: Lingot de Cobalt | D6: 0.3 | E6: 23.33333333 | F6: 25.66666667 | G6: 26
A7: Magnésium | B7: 11 | C7: Poudre de Magnésium | D7: 0.007 | E7: 1571.428571 | F7: 1728.571429 | G7: =ROUNDDOWN(F7,0) -> 1728
A8: Nickel | B8: 6 | C8: Lingot de Nickel | D8: 0.4 | E8: 15 | F8: 16.5 | G8: 17
A9: Or | B9: 10 | C9: Lingot d'Or | D9: 0.01 | E9: 1000 | F9: 1100 | G9: 1100
A10: Platine | B10: 12 | C10: Lingot de Platine | D10: 0.005 | E10: 2400 | F10: 2640 | G10: 2640
A11: Silicium | B11: 3 | C11: Plaquette de Silicium | D11: 0.7 | E11: 4.285714286 | F11: 4.714285714 | G11: 5
A12: Uranium | B12: 11 | C12: Lingot d'Uranium | D12: 0.007 | E12: 1571.428571 | F12: 1728.571429 | G12: =ROUNDDOWN(F12,0) -> 1728

Sheet Composants + Outils
A1: Composants | B1: Coût de base à l'unité (Crédit / Unité) | C1: Majoration (21%) (Raffinage (10%) + Transformation (10%)) | D1: Valeur en cours selon le site
A2: Affichage | B2: =3*'Matériaux Bruts et raffinés'!E4+3*'Matériaux Bruts et raffinés'!E11+0.2*'Matériaux Bruts et raffinés'!E9 -> 225.7142857 | C2: =B2*1.21 -> 273.1142857 | D2: =ROUNDUP((3*'Matériaux Bruts et raffinés'!G4+3*'Matériaux Bruts et raffinés'!G11+0.2*'Matériaux Bruts et raffinés'!G9)*1.1,0) -> 275
A3: Cellule Solaire | B3: =0.3*'Matériaux Bruts et raffinés'!E9+12*'Matériaux Bruts et raffinés'!E11+0.05*'Matériaux Bruts et raffinés'!E10 -> 471.4285714 | C3: =B3*1.21 -> 570.4285714 | D3: =ROUNDUP((0.3*'Matériaux Bruts et raffinés'!G9+12*'Matériaux Bruts et raffinés'!G11+0.05*'Matériaux Bruts et raffinés'!G10)*1.1,0) -> 575
A4: Composant de détection | B4: =5*'Matériaux Bruts et raffinés'!E4+0.2*'Matériaux Bruts et raffinés'!E10 -> 501.4285714 | C4: =B4*1.21 -> 606.7285714 | D4: =ROUNDUP((5*'Matériaux Bruts et raffinés'!G4+0.2*'Matériaux Bruts et raffinés'!G10)*1.1,0) -> 609
A5: Composant de générateur de gravité | B5: =600*'Matériaux Bruts et raffinés'!E4+220*'Matériaux Bruts et raffinés'!E6+5*'Matériaux Bruts et raffinés'!E9 -> 12704.7619 | C5: 15372.7619 | D5: =ROUNDUP((600*'Matériaux Bruts et raffinés'!G4+220*'Matériaux Bruts et raffinés'!G6+5*'Matériaux Bruts et raffinés'!G9)*1.1,0) -> 15642
A6: Composant de propulseur | B6: =30*'Matériaux Bruts et raffinés'!E4+10*'Matériaux Bruts et raffinés'!E6+1*'Matériaux Bruts et raffinés'!E9+0.4*'Matériaux Bruts et raffinés'!E10 -> 2321.904762 | C6: 2809.504762 | D6: =ROUNDUP((30*'Matériaux Bruts et raffinés'!G4+10*'Matériaux Bruts et raffinés'!G6+1*'Matériaux Bruts et raffinés'!G9+0.4*'Matériaux Bruts et raffinés'!G10)*1.1,0) -> 2823
A7: Composant de réacteur | B7: =15*'Matériaux Bruts et raffinés'!E4+10*'Matériaux Bruts et raffinés'!E3+5*'Matériaux Bruts et raffinés'!E5 -> 525.3968254 | C7: 635.7301587 | D7: =ROUNDUP((15*'Matériaux Bruts et raffinés'!G4+10*'Matériaux Bruts et raffinés'!G3+5*'Matériaux Bruts et raffinés'!G5)*1.1,0) -> 649
A8: Composant médical | B8: =80*'Matériaux Bruts et raffinés'!E4+70*'Matériaux Bruts et raffinés'!E8+10*'Matériaux Bruts et raffinés'!E5 -> 2292.857143 | C8: 2774.357143 | D8: =ROUNDUP((80*'Matériaux Bruts et raffinés'!G4+70*'Matériaux Bruts et raffinés'!G8+10*'Matériaux Bruts et raffinés'!G5)*1.1,0) -> 2838
A9: Composant radio | B9: =8*'Matériaux Bruts et raffinés'!E4+0.5*'Matériaux Bruts et raffinés'!E11 -> 36.42857143 | C9: 44.07857143 | D9: =ROUNDUP((8*'Matériaux Bruts et raffinés'!G4+0.5*'Matériaux Bruts et raffinés'!G11)*1.1,0) -> 47
A10: Échafaudage | B10: =7*'Matériaux Bruts et raffinés'!E4 -> 30 | C10: 36.3 | D10: =ROUNDUP((7*'Matériaux Bruts et raffinés'!G4)*1.1,0) -> 39
A11: Élément de construction | B11: =9*'Matériaux Bruts et raffinés'!E4 -> 38.57142857 | C11: 46.67142857 | D11: =ROUNDUP((9*'Matériaux Bruts et raffinés'!G4)*1.1,0) -> 50
A12: Explosif | B12: =0.5*'Matériaux Bruts et raffinés'!E11+2*'Matériaux Bruts et raffinés'!E7 -> 3145 | C12: 3805.45 | D12: =ROUNDUP((0.5*'Matériaux Bruts et raffinés'!G11+2*'Matériaux Bruts et raffinés'!G7)*1.1,0) -> 3805
A13: Grille métallique | B13: =7*'Matériaux Bruts et raffinés'!E4 -> 30 | C13: 36.3 | D13: =ROUNDUP((7*'Matériaux Bruts et raffinés'!G4)*1.1,) -> 39
A14: Moteur | B14: =17*'Matériaux Bruts et raffinés'!E4+5*'Matériaux Bruts et raffinés'!E8+5*'Matériaux Bruts et raffinés'!E6 -> 264.5238095 | C14: 320.0738095 | D14: =ROUNDUP((17*'Matériaux Bruts et raffinés'!G4+5*'Matériaux Bruts et raffinés'!G8+5*'Matériaux Bruts et raffinés'!G6)*1.1,0) -> 330
A15: Ordinateur | B15: =0.2*'Matériaux Bruts et raffinés'!E11+0.1*'Matériaux Bruts et raffinés'!E9 -> 100.8571429 | C15: 122.0371429 | D15: =ROUNDUP((0.2*'Matériaux Bruts et raffinés'!G11+0.1*'Matériaux Bruts et raffinés'!G9)*1.1,0) -> 123
A16: Plaque d'intérieur | B16: =3.5*'Matériaux Bruts et raffinés'!E4 -> 15 | C16: 18.15 | D16: =ROUNDUP((3.5*'Matériaux Bruts et raffinés'!G4)*1.1,) -> 20
A17: Plaque d'acier | B17: =22*'Matériaux Bruts et raffinés'!E4 -> 94.28571429 | C17: 114.0857143 | D17: =ROUNDUP((22*'Matériaux Bruts et raffinés'!G4)*1.1,0) -> 121
A18: Tube en acier (grand) | B18: =30*'Matériaux Bruts et raffinés'!E4 -> 128.5714286 | C18: 155.5714286 | D18: =ROUNDUP((30*'Matériaux Bruts et raffinés'!G4)*1.1,0) -> 165
A19: Tube en acier (petit) | B19: =5*'Matériaux Bruts et raffinés'!E4 -> 21.42857143 | C19: 25.92857143 | D19: =ROUNDUP((5*'Matériaux Bruts et raffinés'!G4)*1.1,0) -> 28
A20: Vitre par-balle | B20: =15*'Matériaux Bruts et raffinés'!E11 -> 64.28571429 | C20: =B20*1.21 -> 77.78571429 | D20: =ROUNDUP((15*'Matériaux Bruts et raffinés'!G11)*1.1,0) -> 83
A22: Outils et Munitions | B22: Coût à l'unité (Crédit / Unité) | C22: Majoration (21%) (Raffinage (10%) + Transformation (10%)) | D22: Valeur en cours selon le site
A23: Chalumeau | B23: =5*'Matériaux Bruts et raffinés'!E4+1*'Matériaux Bruts et raffinés'!E8+0.2*'Matériaux Bruts et raffinés'!E9 -> 236.4285714 | C23: =B23*1.21 -> 286.0785714 | D23: =ROUNDUP((5*'Matériaux Bruts et raffinés'!G4+1*'Matériaux Bruts et raffinés'!G8+0.2*'Matériaux Bruts et raffinés'!G9)*1.1,0) -> 289
A24: Chargeur OTAN 5.56c45mm | B24: =0.8*'Matériaux Bruts et raffinés'!E4+0.2*'Matériaux Bruts et raffinés'!E8+0.2*'Matériaux Bruts et raffinés'!E7 -> 320.7142857 | C24: =B24*1.21 -> 388.0642857 | D24: =ROUNDUP((0.8*'Matériaux Bruts et raffinés'!G4+0.2*'Matériaux Bruts et raffinés'!G8+0.2*'Matériaux Bruts et raffinés'!G7)*1.1,0) -> 389
A25: Conteneur de Missile 200mm | B25: =55*'Matériaux Bruts et raffinés'!E4+7*'Matériaux Bruts et raffinés'!E8+0.2*'Matériaux Bruts et raffinés'!E11+0.5*'Matériaux Bruts et raffinés'!E12+0.4*'Matériaux Bruts et raffinés'!E10+5.2*'Matériaux Bruts et raffinés'!E7 -> 10258.71429 | C25: =B25*1.21 -> 12413.04429 | D25: =ROUNDUP((55*'Matériaux Bruts et raffinés'!G4+7*'Matériaux Bruts et raffinés'!G8+0.2*'Matériaux Bruts et raffinés'!G11+0.5*'Matériaux Bruts et raffinés'!G12+0.4*'Matériaux Bruts et raffinés'!G10+5.2*'Matériaux Bruts et raffinés'!G7)*1.1,0) -> 12431
A26: Conteneur de munitions OTAN 25x184mm | B26: =40*'Matériaux Bruts et raffinés'!E4+5*'Matériaux Bruts et raffinés'!E8+3.5*'Matériaux Bruts et raffinés'!E7 -> 5746.428571 | C26: 6953.178571 | D26: =ROUNDUP((40*'Matériaux Bruts et raffinés'!G4+5*'Matériaux Bruts et raffinés'!G8+3.5*'Matériaux Bruts et raffinés'!G7)*1.1,0) -> 6967
A27: Foreuse portative | B27: =20*'Matériaux Bruts et raffinés'!E4+3*'Matériaux Bruts et raffinés'!E8+3*'Matériaux Bruts et raffinés'!E6 -> 200.7142857 | C27: 242.8642857 | D27: =ROUNDUP((20*'Matériaux Bruts et raffinés'!G4+3*'Matériaux Bruts et raffinés'!G8+3*'Matériaux Bruts et raffinés'!G6)*1.1,0) -> 252
A28: Fusil automatique | B28: =3*'Matériaux Bruts et raffinés'!E4+1*'Matériaux Bruts et raffinés'!E8 -> 27.85714286 | C28: 33.70714286 | D28: =ROUNDUP((3*'Matériaux Bruts et raffinés'!G4+1*'Matériaux Bruts et raffinés'!G8)*1.1,0) -> 36
A29: Meuleuse | B29: =3*'Matériaux Bruts et raffinés'!E4+1*'Matériaux Bruts et raffinés'!E8+1*'Matériaux Bruts et raffinés'!E6+1*'Matériaux Bruts et raffinés'!E11 -> 55.47619048 | C29: =B29*1.21 -> 67.12619048 | D29: =ROUNDUP((3*'Matériaux Bruts et raffinés'!G4+1*'Matériaux Bruts et raffinés'!G8+1*'Matériaux Bruts et raffinés'!G6+1*'Matériaux Bruts et raffinés'!G11)*1.1,0) -> 70

Sheet Petit Vaisseaux
A1: Éléments de construction | B1: Coût de Base Coût/unité | C1: Coût Majoré Cours des prix Coût/unité | D1: Train d'amarrage | E1: Bloc Armure Léger | F1: Pente Armure Légère | G1: Coin Armure Légère | H1: Coin inversé Armure Légère | I1: Bloc Armure Lourde | J1: Pente Armure Lourde | K1: Coin Armure Lourde | L1: Coin inversé Armure Lourde | M1: Cockpit 1 | N1: Siège Passager | O1: Petit Propulseur | P1: Grand Propulseur | Q1: Gyroscope | R1: Petit Générateur | S1: Gros générateur | T1: Petit Cargo | U1: Cargo Moyen | V1: Grand Cargo | W1: Bloc de Fusion - Merge Block | X1: Rotor | Y1: Masse Artificielle | Z1: Panneau solaire | AA1: Projecteur "Spotlight" | AB1: Antènne | AC1: Balise "Beacon" | AD1: Détecteur de Minerai | AE1: "Gatling Gun" | AF1: Lance Missile | AG1: Équipement de Forage "Drill" | AH1: Meuleuse "Grinder" | AI1: Soudeuse "Welder" | AJ1: Ogive "Warhead" | AK1: Decoy | AL1: Roue 1x1 | AM1: Roue 3 x 3 | AN1: Roue 5 x 5 | AO1: Convoyeur (Gros) | AP1: Tube de Convoyeur (Gros) | AQ1: Frame de convoyeur (Gros) | AR1: Convoyeur Courbé (Petit) | AS1: Collecteur | AT1: Connecteur (Éjecteur) (Gros) | AU1: Convoyeur (Petit) | AV1: Tube de Convoyeur (Petit) | AW1: Convoyeur Courbé (Gros) | AX1: Éjecteur (Petit)
A2: Affichage | B2: ='Composants + Outils'!B2 -> 225.7142857 | C2: ='Composants + Outils'!D2 -> 275 | M2: 5 | T2: 1 | U2: 1 | V2: 1 | AS2: 2 | AT2: 1 | AX2: 1
A3: Cellule Solaire | B3: ='Composants + Outils'!B3 -> 471.4285714 | C3: ='Composants + Outils'!D3 -> 575 | Z3: 16
A4: Composant de détection | B4: ='Composants + Outils'!B4 -> 501.4285714 | C4: ='Composants + Outils'!D4 -> 609 | AD4: 1
A5: Composant de générateur de gravité | B5: ='Composants + Outils'!B5 -> 12704.7619 | C5: ='Composants + Outils'!D5 -> 15642 | Y5: 1
A6: Composant de propulseur | B6: ='Composants + Outils'!B6 -> 2321.904762 | C6: ='Composants + Outils'!D6 -> 2823 | O6: 1 | P6: 12
A7: Composant de réacteur | B7: ='Composants + Outils'!B7 -> 525.3968254 | C7: ='Composants + Outils'!D7 -> 649 | R7: 1 | S7: 50
A8: Composant médical | B8: ='Composants + Outils'!B8 -> 2292.857143 | C8: ='Composants + Outils'!D8 -> 2838
A9: Composant radio | B9: ='Composants + Outils'!B9 -> 36.42857143 | C9: ='Composants + Outils'!D9 -> 47
A10: Échafaudage/Poutre | B10: ='Composants + Outils'!B10 -> 30 | C10: ='Composants + Outils'!D10 -> 39 | AJ10: 1 | AK10: 1
A11: Élément de construction | B11: ='Composants + Outils'!B11 -> 38.57142857 | C11: ='Composants + Outils'!D11 -> 50 | D11: 1 | M11: 10 | N11: 20 | O11: 1 | P11: 2 | Q11: 5 | R11: 1 | S11: 9 | T11: 1 | U11: 10 | V11: 25 | W11: 5 | X11: 5 | Y11: 2 | Z11: 2 | AA11: 1 | AB11: 1 | AC11: 1 | AD11: 2 | AE11: 1 | AF11: 2 | AG11: 8 | AH11: 17 | AI11: 17 | AJ11: 1 | AK11: 1 | AL11: 10 | AM11: 30 | AN11: 50 | AO11: 70 | AP11: 30 | AQ11: 12 | AR11: 1 | AS11: 35 | AT11: 12 | AU11: 4 | AV11: 1 | AW11: 30 | AX11: 4
A12: Explosif | B12: ='Composants + Outils'!B12 -> 3145 | C12: ='Composants + Outils'!D12 -> 3805 | AJ12: 2
A13: Grille métallique | B13: ='Composants + Outils'!B13 -> 30 | C13: ='Composants + Outils'!D13 -> 39 | R13: 1 | S13: 9 | Z13: 2 | AL13: 4 | AM13: 12 | AN13: 20
A14: Moteur | B14: ='Composants + Outils'!B14 -> 264.5238095 | C14: ='Composants + Outils'!D14 -> 330 | D14: 1 | M14: 1 | Q14: 2 | R14: 1 | S14: 5 | T14: 2 | U14: 6 | V14: 8 | W14: 1 | X14: 1 | AD14: 1 | AE14: 1 | AF14: 1 | AG14: 1 | AH14: 4 | AI14: 2 | AO14: 2 | AP14: 6 | AQ14: 2 | AR14: 1 | AS14: 8 | AT14: 6 | AU14: 1 | AV14: 1 | AW14: 6 | AX14: 1
A15: Ordinateur | B15: ='Composants + Outils'!B15 -> 100.8571429 | C15: ='Composants + Outils'!D15 -> 123 | M15: 15 | Q15: 3 | R15: 10 | S15: 25 | T15: 2 | U15: 4 | V15: 6 | W15: 1 | X15: 1 | Y15: 2 | Z15: 1 | AB15: 1 | AC15: 1 | AD15: 1 | AE15: 1 | AF15: 1 | AG15: 1 | AH15: 2 | AI15: 2 | AJ15: 1 | AK15: 1 | AO15: 3 | AS15: 8 | AT15: 6 | AU15: 2 | AX15: 4
A16: Plaque d'intérieur | B16: ='Composants + Outils'!B16 -> 15 | C16: ='Composants + Outils'!D16 -> 20 | M16: 10 | N16: 20 | T16: 3 | U16: 30 | V16: 75 | AA16: 1 | AO16: 25 | AR16: 1 | AU16: 4 | AV16: 1
A17: Plaque d'acier | B17: ='Composants + Outils'!B17 -> 94.28571429 | C17: ='Composants + Outils'!D17 -> 121 | D17: 1 | E17: 1 | F17: 1 | G17: 1 | H17: 1 | I17: 5 | J17: 5 | K17: 5 | L17: 5 | O17: 1 | P17: 5 | Q17: 25 | R17: 2 | S17: 60 | W17: 4 | X17: 5 | Y17: 3 | Z17: 1 | AA17: 1 | AC17: 1 | AD17: 2 | AE17: 4 | AF17: 4 | AG17: 32 | AH17: 12 | AI17: 12 | AL17: 4 | AM17: 12 | AN17: 20 | AP17: 8 | AQ17: 4 | AS17: 35 | AT17: 21 | AW17: 7 | AX17: 7
A18: Tube en acier (grand) | B18: ='Composants + Outils'!B18 -> 128.5714286 | C18: ='Composants + Outils'!D18 -> 165 | D18: 1 | O18: 1 | P18: 5 | Q18: 1 | R18: 1 | S18: 3 | AF18: 4 | AG18: 4 | AH18: 1 | AI18: 1 | AL18: 2 | AM18: 6 | AN18: 10
A19: Tube en acier (petit) | B19: ='Composants + Outils'!B19 -> 21.42857143 | C19: ='Composants + Outils'!D19 -> 28 | W19: 2 | X19: 1 | Z19: 1 | AB19: 1 | AC19: 1 | AE19: 3 | AG19: 8 | AH19: 4 | AI19: 6 | AJ19: 2 | AK19: 2 | AO19: 25 | AP19: 10 | AQ19: 5 | AS19: 12 | AT19: 6 | AW19: 10 | AX19: 2
A20: Vitre pare-balle | B20: ='Composants + Outils'!B20 -> 64.28571429 | C20: ='Composants + Outils'!D20 -> 83 | M20: 30
B22: Coût de Base Fabrication | D22: =$B2*D2+$B3*D3+$B4*D4+$B5*D5+$B6*D6+$B7*D7+$B8*D8+$B9*D9+$B10*D10+$B11*D11+$B12*D12+$B13*D13+$B14*D14+$B15*D15+$B16*D16+$B17*D17+$B18*D18+$B19*D19+$B20*D20 -> 525.952381 | E22: =$B2*E2+$B3*E3+$B4*E4+$B5*E5+$B6*E6+$B7*E7+$B8*E8+$B9*E9+$B10*E10+$B11*E11+$B12*E12+$B13*E13+$B14*E14+$B15*E15+$B16*E16+$B17*E17+$B18*E18+$B19*E19+$B20*E20 -> 94.28571429 | F22: 94.28571429 | G22: 94.28571429 | H22: 94.28571429 | I22: 471.4285714 | J22: 471.4285714 | K22: 471.4285714 | L22: 471.4285714 | M22: =$B2*M2+$B3*M3+$B4*M4+$B5*M5+$B6*M6+$B7*M7+$B8*M8+$B9*M9+$B10*M10+$B11*M11+$B12*M12+$B13*M13+$B14*M14+$B15*M15+$B16*M16+$B17*M17+$B18*M18+$B19*M19+$B20*M20 -> 5370.238095 | N22: 1071.428571 | O22: =$B2*O2+$B3*O3+$B4*O4+$B5*O5+$B6*O6+$B7*O7+$B8*O8+$B9*O9+$B10*O10+$B11*O11+$B12*O12+$B13*O13+$B14*O14+$B15*O15+$B16*O16+$B17*O17+$B18*O18+$B19*O19+$B20*O20 -> 2583.333333 | P22: =$B2*P2+$B3*P3+$B4*P4+$B5*P5+$B6*P6+$B7*P7+$B8*P8+$B9*P9+$B10*P10+$B11*P11+$B12*P12+$B13*P13+$B14*P14+$B15*P15+$B16*P16+$B17*P17+$B18*P18+$B19*P19+$B20*P20 -> 29054.28571 | Q22: 3510.190476 | R22: 2184.206349 | S22: 36773.88889 | T22: 1040.047619 | U22: =$B2*U2+$B3*U3+$B4*U4+$B5*U5+$B6*U6+$B7*U7+$B8*U8+$B9*U9+$B10*U10+$B11*U11+$B12*U12+$B13*U13+$B14*U14+$B15*U15+$B16*U16+$B17*U17+$B18*U18+$B19*U19+$B20*U20 -> 3052 | V22: 5036.333333 | W22: 978.2380952 | X22: 1051.095238 | Y22: 13266.47619 | Z22: 7896.571429 | AA22: 147.8571429 | AB22: 160.8571429 | AC22: 255.1428571 | AD22: =$B2*AD2+$B3*AD3+$B4*AD4+$B5*AD5+$B6*AD6+$B7*AD7+$B8*AD8+$B9*AD9+$B10*AD10+$B11*AD11+$B12*AD12+$B13*AD13+$B14*AD14+$B15*AD15+$B16*AD16+$B17*AD17+$B18*AD18+$B19*AD19+$B20*AD20 -> 1132.52381 | AE22: 845.3809524 | AF22: 1333.952381 | AG22: 4376.809524 | AH22: 3261.238095 | AI22: 2775.047619 | AJ22: 6502.285714 | AK22: =$B2*AK2+$B3*AK3+$B4*AK4+$B5*AK5+$B6*AK6+$B7*AK7+$B8*AK8+$B9*AK9+$B10*AK10+$B11*AK11+$B12*AK12+$B13*AK13+$B14*AK14+$B15*AK15+$B16*AK16+$B17*AK17+$B18*AK18+$B19*AK19+$B20*AK20 -> 212.2857143 | AL22: =$B2*AL2+$B3*AL3+$B4*AL4+$B5*AL5+$B6*AL6+$B7*AL7+$B8*AL8+$B9*AL9+$B10*AL10+$B11*AL11+$B12*AL12+$B13*AL13+$B14*AL14+$B15*AL15+$B16*AL16+$B17*AL17+$B18*AL18+$B19*AL19+$B20*AL20 -> 1140 | AM22: =$B2*AM2+$B3*AM3+$B4*AM4+$B5*AM5+$B6*AM6+$B7*AM7+$B8*AM8+$B9*AM9+$B10*AM10+$B11*AM11+$B12*AM12+$B13*AM13+$B14*AM14+$B15*AM15+$B16*AM16+$B17*AM17+$B18*AM18+$B19*AM19+$B20*AM20 -> 3420 | AN22: 5700 | AO22: 4442.333333 | AP22: 3712.857143 | AQ22: 1476.190476 | AR22: 318.0952381 | AS22: 8281.619048 | AT22: 4989.428571 | AU22: 680.5238095 | AV22: 318.0952381 | AW22: 3618.571429 | AX22: 1750.809524
B24: Prix Vente | D24: =D22*1.331 -> 700.042619 | E24: =E22*1.331 -> 125.4942857 | F24: =F22*1.331 -> 125.4942857 | G24: =G22*1.331 -> 125.4942857 | H24: 125.4942857 | I24: 627.4714286 | J24: 627.4714286 | K24: 627.4714286 | L24: 627.4714286 | M24: 7147.786905 | O24: =O22*1.331 -> 3438.416667 | P24: 38671.25429 | Q24: 4672.063524 | R24: 2907.178651 | S24: 48946.04611 | T24: 1384.303381 | U24: 4062.212 | V24: 6703.359667 | W24: =W22*1.331 -> 1302.034905 | X24: =X22*1.331 -> 1399.007762 | Y24: =Y22*1.331 -> 17657.67981 | Z24: =Z22*1.331 -> 10510.33657 | AA24: 196.7978571 | AB24: 214.1008571 | AC24: 339.5951429 | AD24: 1507.38919 | AE24: 1125.202048 | AF24: 1775.490619 | AG24: =AG22*1.331 -> 5825.533476 | AH24: 4340.707905 | AI24: 3693.588381 | AJ24: =AJ22*1.331 -> 8654.542286 | AK24: =AK22*1.331 -> 282.5522857 | AL24: =AL22*1.331 -> 1517.34 | AM24: 4552.02 | AN24: 7586.7 | AO24: 5912.745667 | AP24: 4941.812857 | AQ24: 1964.809524 | AR24: 423.3847619 | AS24: 11022.83495 | AT24: 6640.929429 | AU24: 905.7771905 | AV24: 423.3847619 | AW24: 4816.318571 | AX24: 2330.327476
B25: Cours des Prix | C25: Profit 10% => | D25: =ROUNDUP(($C2*D2+$C3*D3+$C4*D4+$C5*D5+$C6*D6+$C7*D7+$C8*D8+$C9*D9+$C10*D10+$C11*D11+$C12*D12+$C13*D13+$C14*D14+$C15*D15+$C16*D16+$C17*D17+$C18*D18+$C19*D19+$C20*D20)*1.1,0) -> 733 | E25: =ROUNDUP(($C2*E2+$C3*E3+$C4*E4+$C5*E5+$C6*E6+$C7*E7+$C8*E8+$C9*E9+$C10*E10+$C11*E11+$C12*E12+$C13*E13+$C14*E14+$C15*E15+$C16*E16+$C17*E17+$C18*E18+$C19*E19+$C20*E20)*1.1,0) -> 134 | F25: =ROUNDUP(($C2*F2+$C3*F3+$C4*F4+$C5*F5+$C6*F6+$C7*F7+$C8*F8+$C9*F9+$C10*F10+$C11*F11+$C12*F12+$C13*F13+$C14*F14+$C15*F15+$C16*F16+$C17*F17+$C18*F18+$C19*F19+$C20*F20)*1.1,0) -> 134 | G25: =ROUNDUP(($C2*G2+$C3*G3+$C4*G4+$C5*G5+$C6*G6+$C7*G7+$C8*G8+$C9*G9+$C10*G10+$C11*G11+$C12*G12+$C13*G13+$C14*G14+$C15*G15+$C16*G16+$C17*G17+$C18*G18+$C19*G19+$C20*G20)*1.1,0) -> 134 | H25: 134 | I25: 666 | J25: =ROUNDUP(($C2*J2+$C3*J3+$C4*J4+$C5*J5+$C6*J6+$C7*J7+$C8*J8+$C9*J9+$C10*J10+$C11*J11+$C12*J12+$C13*J13+$C14*J14+$C15*J15+$C16*J16+$C17*J17+$C18*J18+$C19*J19+$C20*J20)*1.1,0) -> 666 | K25: 666 | L25: 666 | M25: 7414 | O25: =ROUNDUP(($C2*O2+$C3*O3+$C4*O4+$C5*O5+$C6*O6+$C7*O7+$C8*O8+$C9*O9+$C10*O10+$C11*O11+$C12*O12+$C13*O13+$C14*O14+$C15*O15+$C16*O16+$C17*O17+$C18*O18+$C19*O19+$C20*O20)*1.1,0) -> 3475 | P25: 38947 | Q25: 4916 | R25: 2976 | S25: 50305 | T25: 1421 | U25: 4232 | V25: 7044 | W25: 1368 | X25: 1470 | Y25: 17987 | Z25: 10615 | AA25: 211 | AB25: 222 | AC25: 355 | AD25: 1545 | AE25: 1179 | AF25: 1867 | AG25: =ROUNDUP(($C2*AG2+$C3*AG3+$C4*AG4+$C5*AG5+$C6*AG6+$C7*AG7+$C8*AG8+$C9*AG9+$C10*AG10+$C11*AG11+$C12*AG12+$C13*AG13+$C14*AG14+$C15*AG15+$C16*AG16+$C17*AG17+$C18*AG18+$C19*AG19+$C20*AG20)*1.1,0) -> 6170 | AH25: 4560 | AI25: 3896 | AJ25: 8666 | AK25: =ROUNDUP(($C2*AK2+$C3*AK3+$C4*AK4+$C5*AK5+$C6*AK6+$C7*AK7+$C8*AK8+$C9*AK9+$C10*AK10+$C11*AK11+$C12*AK12+$C13*AK13+$C14*AK14+$C15*AK15+$C16*AK16+$C17*AK17+$C18*AK18+$C19*AK19+$C20*AK20)*1.1,0) -> 295 | AL25: =ROUNDUP(($C2*AL2+$C3*AL3+$C4*AL4+$C5*AL5+$C6*AL6+$C7*AL7+$C8*AL8+$C9*AL9+$C10*AL10+$C11*AL11+$C12*AL12+$C13*AL13+$C14*AL14+$C15*AL15+$C16*AL16+$C17*AL17+$C18*AL18+$C19*AL19+$C20*AL20)*1.1,0) -> 1617 | AM25: =ROUNDUP(($C2*AM2+$C3*AM3+$C4*AM4+$C5*AM5+$C6*AM6+$C7*AM7+$C8*AM8+$C9*AM9+$C10*AM10+$C11*AM11+$C12*AM12+$C13*AM13+$C14*AM14+$C15*AM15+$C16*AM16+$C17*AM17+$C18*AM18+$C19*AM19+$C20*AM20)*1.1,0) -> 4851 | AN25: 8085 | AO25: 6302 | AP25: 5201 | AQ25: 2073 | AR25: 440 | AS25: 11545 | AT25: 6933 | AU25: 942 | AV25: 440 | AW25: 5068 | AX25: 2420
A27: Modèle | B27: Coût de Base | C27: Prix de Vente Cours des prix (Profit 20%) | E27: Quantité | I27: Quantité | M27: Quantité | R27: Quantité | Z27: Quantité | AD27: Quantité | AU27: Quantité | AY27: Coût de Base | BA27: Coût Éléments de construction (21%) | BB27: Coût Éléments de construction (21%) Cours des Prix | BC27: Prix de Vente Majoration
A28: Test | D28: 1 | E28: 22 | F28: 1 | G28: 1 | H28: 1 | I28: 1 | J28: 1 | K28: 1 | L28: 1 | M28: 1 | N28: 1 | O28: 1 | P28: 1 | Q28: 1 | R28: 1 | S28: 1 | T28: 1 | U28: 1 | V28: 1 | W28: 1 | X28: 1 | Y28: 1 | Z28: 1 | AA28: 1 | AB28: 1 | AC28: 1 | AD28: 1 | AE28: 1 | AF28: 1 | AG28: 1 | AH28: 1 | AI28: 1 | AJ28: 1 | AK28: 1 | AL28: 1 | AM28: 1 | AN28: 1 | AO28: 1 | AP28: 1 | AQ28: 1 | AR28: 1 | AS28: 1 | AT28: 1 | AU28: 1 | AV28: 1 | AW28: 1 | AX28: 1 | AY28: =E$22*E28+F$22*F28+G$22*G28+H$22*H28+I$22*I28+J$22*J28+K$22*K28+L$22*L28+M$22*M28+O$22*O28+P$22*P28+Q$22*Q28+R$22*R28+S$22*S28+X$22*X28+D$22*D28+AU$22*AU28+T$22*T28+U$22*U28+V$22*V28+Z$22*Z28+AA$22*AA28+AB$22*AB28+AC$22*AC28+AD$22*AD28+AE$22*AE28+AF$22*AF28+AJ$22*AJ28+Y$22*Y28+AV$22*AV28+AS$22*AS28+AT$22*AT28+AL$22*AL28+AM$22*AM28+AN$22*AN28+AK$22*AK28+AO422*AO28+AP$22*AP28+AQ$22*AQ28+AR422*AR28+AW$22*AW28+AX$22*AX28+W$22*W28+N22*N28+AG22*AG28+AH22*AH28+AI22*AI28 -> 173728.619 | BA28: =AY28*1.21 -> 210211.629 | BB28: =(E$25*E28+F$25*F28+G$25*G28+H$25*H28+I$25*I28+J$25*J28+K$25*K28+L$25*L28+M$25*M28+O$25*O28+P$25*P28+Q$25*Q28+R$25*R28+S$25*S28+X$25*X28+D$25*D28+AU$25*AU28+T$25*T28+U$25*U28+V$25*V28+Z$25*Z28+AA$25*AA28+AB$25*AB28+AC$25*AC28+AD$25*AD28+AE$25*AE28+AF$25*AF28+AJ$25*AJ28+Y$25*Y28+AV$25*AV28+AS$25*AS28+AT$25*AT28+AL$25*AL28+AM426*AM28+AN$25*AN28+AK$25*AK28+AO$25*AO28+AP$25*AP28+AQ$25*AQ28+AR$25*AR28+AW$25*AW28+AX$25*AX28+W425*W28+N25*N28+AG25*AG28+AH25*AH28+AI25*AI28)/1.1 -> 215982.7273 | BC28: =CZ28*1.331 -> 0
B29: =AY29 -> 0 | C29: =BB29*1.4 -> 0 | AY29: =E$22*E29+F$22*F29+G$22*G29+H$22*H29+I$22*I29+J$22*J29+K$22*K29+L$22*L29+M$22*M29+O$22*O29+P$22*P29+Q$22*Q29+R$22*R29+S$22*S29+X$22*X29+D$22*D29+AU$22*AU29+T$22*T29+U$22*U29+V$22*V29+Z$22*Z29+AA$22*AA29+AB$22*AB29+AC$22*AC29+AD$22*AD29+AE$22*AE29+AF$22*AF29+AJ$22*AJ29+Y$22*Y29+AV$22*AV29+AS$22*AS29+AT$22*AT29+AL$22*AL29+AM$22*AM29+AN$22*AN29+AK$22*AK29+AO423*AO29+AP$22*AP29+AQ$22*AQ29+AR423*AR29+AW$22*AW29+AX$22*AX29+W$22*W29+N23*N29+AG23*AG29+AH23*AH29+AI23*AI29 -> 0 | BA29: =AY29*1.21 -> 0 | BB29: =(E$25*E29+F$25*F29+G$25*G29+H$25*H29+I$25*I29+J$25*J29+K$25*K29+L$25*L29+M$25*M29+O$25*O29+P$25*P29+Q$25*Q29+R$25*R29+S$25*S29+X$25*X29+D$25*D29+AU$25*AU29+T$25*T29+U$25*U29+V$25*V29+Z$25*Z29+AA$25*AA29+AB$25*AB29+AC$25*AC29+AD$25*AD29+AE$25*AE29+AF$25*AF29+AJ$25*AJ29+Y$25*Y29+AV$25*AV29+AS$25*AS29+AT$25*AT29+AL$25*AL29+AM427*AM29+AN$25*AN29+AK$25*AK29+AO$25*AO29+AP$25*AP29+AQ$25*AQ29+AR$25*AR29+AW$25*AW29+AX$25*AX29+W426*W29+N26*N29+AG26*AG29+AH26*AH29+AI26*AI29)/1.1 -> 0 | BC29: 0
B30: 0 | C30: 0 | AY30: 0 | BA30: 0 | BB30: 0 | BC30: 0
B31: 0 | C31: 0 | AY31: 0 | BA31: 0 | BB31: 0 | BC31: 0
B32: 0 | C32: 0 | AY32: 0 | BA32: 0 | BB32: 0 | BC32: 0
B33: 0 | C33: 0 | AY33: 0 | BA33: 0 | BB33: 0 | BC33: 0
B34: 0 | C34: 0 | AY34: 0 | BA34: 0 | BB34: 0 | BC34: 0
B35: 0 | C35: 0 | AY35: 0 | BA35: 0 | BB35: 0 | BC35: 0
B36: 0 | C36: 0 | AY36: 0 | BA36: 0 | BB36: 0 | BC36: 0
B37: 0 | C37: 0 | AY37: 0 | BA37: 0 | BB37: 0 | BC37: 0
B38: 0 | C38: 0 | AY38: 0 | BA38: 0 | BB38: 0 | BC38: 0
B39: 0 | C39: 0 | AY39: 0 | BA39: 0 | BB39: 0 | BC39: 0
B40: 0 | C40: 0 | AY40: 0 | BA40: 0 | BB40: 0 | BC40: 0
B41: 0 | C41: 0 | AY41: 0 | BA41: 0 | BB41: 0 | BC41: 0
B42: 0 | C42: 0 | AY42: 0 | BA42: 0 | BB42: 0 | BC42: 0

Sheet Gros Vaisseaux - Stations
A1: Éléments de construction | B1: Coût de Base Coût/unité | C1: Coût Majoré Cours des prix Coût/unité | D1: Bloc Armure Léger | E1: Pente Armure Légère | F1: Coin Armure Légère | G1: Coin inversé Armure Légère | H1: Mur Intérieur | I1: Escalier | J1: Rampe | K1: Fenêtre Verticale | L1: Fenêtre Diagonale | M1: Bloc Armure Lourde | N1: Pente Armure Lourde | O1: Coin Armure Lourde | P1: Coin inversé Armure Lourde | Q1: Passerelle en Acier | R1: Mur de Couverture Demi | S1: Mur de Couverture entier | T1: Pillier Intérieur | U1: Cockpit 1 | V1: Cockpit 2 | W1: Cockpit 3 | X1: Siège passager | Y1: Petit Propulseur | Z1: Grand Propulseur | AA1: Gyroscope | AB1: Petit Générateur | AC1: Gros Générateur | AD1: Petit Cargo | AE1: Grand Cargo | AF1: Train d'amarrage | AG1: Bloc de Fusion - Merge Block | AH1: Rotor | AI1: Masse Artificielle | AJ1: Panneau solaire | AK1: Raffinerie | AL1: Assembleur | AM1: Centre Médical | AN1: Lumière Intérieure | AO1: Projecteur "Spotlight" | AP1: Antènne | AQ1: Balise "Beacon" | AR1: Détecteur de Minerai | AS1: Lance-Missile | AT1: Équipement de Forage "Drill" | AU1: Meuleuse "Grinder" | AV1: Soudeuse "Welder" | AW1: Tourelle Intérieure | AX1: Ogive "Warhead" | AY1: Decoy | AZ1: Fenêtre Plate 1 x 1 | BA1: Fenêtre Plate Inversée 1 x 1 | BB1: Fenêtre Plate 1 x 2 | BC1: Fenêtre Plate Inversé 1 x 2 | BD1: Fenêtre Plate 2 x 3 | BE1: Fenêtre Plate inversée 2 x 3 | BF1: Fenêtre Plate 3 x 3 | BG1: Fenêtre Plate Inversée 3 x 3 | BH1: Fenêtre Inclinée 1 x 1 | BI1: Fenêtre Inclinée 1 x 2 | BJ1: Fenêtre Côté 1 x 1 | BK1: Fenêtre Côté Droit 1 x 2 | BL1: Fenêtre Côté Gauche 1 x 2 | BM1: Fenêtre Face 1 x 1 | BN1: Fenêtre Face Inversée 1 x 1 | BO1: Fenêtre Face 1 x 2 | BP1: Fenêtre Face Inversée 1 x 2 | BQ1: Roue 1 x 1 | BR1: Roue 3 x 3 | BS1: Roue 5 x 5 | BT1: Convoyeur | BU1: Tube de Convoyeur | BV1: Convoyeur Courbé | BW1: Collecteur | BX1: Connecteur (Output) | BY1: Couloir | BZ1: Porte | CA1: Générateur de Gravité | CB1: "Gatling Turret" | CC1: Tourelle Missile
A2: Affichage | B2: ='Composants + Outils'!B2 -> 225.7142857 | C2: ='Composants + Outils'!D2 -> 275 | U2: 8 | V2: 10 | W2: 4 | AD2: 1 | AE2: 1 | AL2: 4 | AM2: 10 | BW2: 4 | BX2: 4 | BZ2: 1
A3: Cellule Solaire | B3: ='Composants + Outils'!B3 -> 471.4285714 | C3: ='Composants + Outils'!D3 -> 575 | AJ3: 64
A4: Composant de détection | B4: ='Composants + Outils'!B4 -> 501.4285714 | C4: ='Composants + Outils'!D4 -> 609 | AR4: 25
A5: Composant de générateur de gravité | B5: ='Composants + Outils'!B5 -> 12704.7619 | C5: ='Composants + Outils'!D5 -> 15642 | AI5: 3 | CA5: 6
A6: Composant de propulseur | B6: ='Composants + Outils'!B6 -> 2321.904762 | C6: ='Composants + Outils'!D6 -> 2823 | Y6: 80 | Z6: 960
A7: Composant de réacteur | B7: ='Composants + Outils'!B7 -> 525.3968254 | C7: ='Composants + Outils'!D7 -> 649 | AB7: 100 | AC7: 2000
A8: Composant médical | B8: ='Composants + Outils'!B8 -> 2292.857143 | C8: ='Composants + Outils'!D8 -> 2838 | AM8: 15
A9: Composant radio | B9: ='Composants + Outils'!B9 -> 36.42857143 | C9: ='Composants + Outils'!D9 -> 47 | AP9: 40 | AQ9: 40
A10: Échafaudage | B10: ='Composants + Outils'!B10 -> 30 | C10: ='Composants + Outils'!D10 -> 39 | AX10: 24 | AZ10: 10 | BA10: 10 | BB10: 15 | BC10: 15 | BD10: 25 | BE10: 25 | BF10: 40 | BG10: 40 | BH10: 12 | BI10: 16 | BJ10: 9 | BK10: 13 | BL10: 13 | BM10: 11 | BN10: 11 | BO10: 15 | BP10: 15
A11: Élément de construction | B11: ='Composants + Outils'!B11 -> 38.57142857 | C11: ='Composants + Outils'!D11 -> 50 | H11: 10 | I11: 20 | J11: 16 | K11: 8 | L11: 12 | Q11: 5 | R11: 6 | S11: 10 | T11: 6 | U11: 20 | V11: 20 | W11: 20 | X11: 20 | Y11: 60 | Z11: 100 | AA11: 40 | AB11: 40 | AC11: 70 | AD11: 40 | AE11: 80 | AF11: 10 | AG11: 17 | AH11: 10 | AI11: 30 | AJ11: 10 | AK11: 40 | AL11: 40 | AM11: 80 | AN11: 1 | AO11: 20 | AP11: 40 | AQ11: 40 | AR11: 40 | AS11: 8 | AT11: 40 | AU11: 30 | AV11: 30 | AW11: 20 | AX11: 12 | AY11: 1 | BQ11: 17 | BR11: 30 | BS11: 100 | BT11: 120 | BU11: 40 | BV11: 40 | BW11: 50 | BX11: 40 | BY11: 20 | BZ11: 40 | CA11: 60 | CB11: 30 | CC11: 40
A12: Explosif | B12: ='Composants + Outils'!B12 -> 3145 | C12: ='Composants + Outils'!D12 -> 3805 | AX12: 6
A13: Grille métallique | B13: ='Composants + Outils'!B13 -> 30 | C13: ='Composants + Outils'!D13 -> 39 | I13: 52 | J13: 24 | Q13: 25 | T13: 6 | AB13: 4 | AC13: 40 | AJ13: 5 | AM13: 80 | BQ13: 10 | BR13: 12 | BS13: 40 | BY13: 18 | BZ13: 4
A14: Moteur | B14: ='Composants + Outils'!B14 -> 264.5238095 | C14: ='Composants + Outils'!D14 -> 330 | U14: 1 | V14: 2 | W14: 2 | AA14: 2 | AB14: 6 | AC14: 20 | AD14: 2 | AE14: 20 | AF14: 6 | AG14: 2 | AH14: 4 | AK14: 12 | AL14: 8 | AR14: 5 | AS14: 6 | AT14: 5 | AU14: 4 | AV14: 2 | AW14: 2 | BT14: 2 | BU14: 8 | BV14: 8 | BW14: 8 | BX14: 8 | BZ14: 2 | CA14: 6 | CB14: 8 | CC14: 16
A15: Ordinateur | B15: ='Composants + Outils'!B15 -> 100.8571429 | C15: ='Composants + Outils'!D15 -> 123 | U15: 100 | V15: 100 | W15: 100 | Y15: 20 | Z15: 60 | AA15: 5 | AB15: 25 | AC15: 75 | AD15: 2 | AE15: 8 | AG15: 2 | AH15: 2 | AI15: 20 | AJ15: 2 | AK15: 20 | AL15: 80 | AP15: 8 | AQ15: 8 | AR15: 25 | AS15: 4 | AT15: 5 | AU15: 2 | AV15: 2 | AW15: 5 | AX15: 2 | AY15: 1 | BT15: 5 | BW15: 10 | BX15: 20 | BZ15: 2 | CA15: 40 | CB15: 10 | CC15: 12
A16: Plaque d'intérieur | B16: ='Composants + Outils'!B16 -> 15 | C16: ='Composants + Outils'!D16 -> 20 | H16: 25 | I16: 50 | J16: 50 | K16: 12 | L16: 16 | Q16: 2 | T16: 20 | U16: 30 | V16: 20 | W16: 20 | X16: 20 | AD16: 40 | AE16: 360 | AM16: 240 | AO16: 20 | AW16: 6 | BT16: 50 | BY16: 74 | BZ16: 10
A17: Plaque d'acier | B17: ='Composants + Outils'!B17 -> 94.28571429 | C17: ='Composants + Outils'!D17 -> 121 | D17: 25 | E17: 13 | F17: 4 | G17: 21 | M17: 150 | N17: 75 | O17: 25 | P17: 125 | R17: 2 | S17: 4 | Y17: 25 | Z17: 150 | AA17: 900 | AB17: 80 | AC17: 1000 | AF17: 150 | AG17: 12 | AH17: 15 | AI17: 90 | AJ17: 4 | AK17: 1200 | AL17: 150 | AO17: 8 | AP17: 80 | AQ17: 80 | AR17: 50 | AS17: 35 | AT17: 300 | AU17: 20 | AV17: 20 | AW17: 4 | AX17: 10 | AY17: 2 | BQ17: 9 | BR17: 12 | BS17: 40 | BU17: 10 | BV17: 10 | BW17: 45 | BX17: 150 | BZ17: 8 | CA17: 150 | CB17: 20 | CC17: 20
A18: Tube en acier (grand) | B18: ='Composants + Outils'!B18 -> 128.5714286 | C18: ='Composants + Outils'!D18 -> 165 | Y18: 8 | Z18: 40 | AA18: 4 | AB18: 8 | AC18: 40 | AF18: 4 | AG18: 1 | AH18: 4 | AJ18: 1 | AK18: 20 | AM18: 5 | AO18: 2 | AP18: 40 | AQ18: 40 | AS18: 25 | AT18: 12 | AU18: 1 | AV18: 1 | AW18: 1 | AY18: 2 | BQ18: 4 | BR18: 6 | BS18: 20 | CA18: 4 | CB18: 1 | CC18: 6
A19: Tube en acier (petit) | B19: ='Composants + Outils'!B19 -> 21.42857143 | C19: ='Composants + Outils'!D19 -> 28 | I19: 32 | J19: 32 | K19: 4 | L19: 6 | Q19: 20 | T19: 4 | AD19: 20 | AE19: 60 | AG19: 6 | AL19: 12 | AM19: 20 | AP19: 60 | AQ19: 60 | AT19: 24 | AU19: 4 | AV19: 8 | AW19: 2 | AX19: 12 | BT19: 50 | BU19: 12 | BV19: 12 | BW19: 12 | BX19: 12 | BY19: 48 | BZ19: 4 | CB19: 6
A20: Vitre par-balle | B20: ='Composants + Outils'!B20 -> 64.28571429 | C20: ='Composants + Outils'!D20 -> 83 | U20: 10 | AO20: 2 | AZ20: 25 | BA20: 25 | BB20: 50 | BC20: 50 | BD20: 140 | BE20: 140 | BF20: 196 | BG20: 196 | BH20: 35 | BI20: 55 | BJ20: 17 | BK20: 26 | BL20: 26 | BM20: 24 | BN20: 24 | BO20: 40 | BP20: 40 | BU20: 4 | BV20: 4
B22: Coût de Base Fabrication | D22: =$B2*D2+$B3*D3+$B4*D4+$B5*D5+$B6*D6+$B7*D7+$B8*D8+$B9*D9+$B10*D10+$B11*D11+$B12*D12+$B13*D13+$B14*D14+$B15*D15+$B16*D16+$B17*D17+$B18*D18+$B19*D19+$B20*D20 -> 2357.142857 | E22: 1225.714286 | F22: 377.1428571 | G22: 1980 | H22: =$B2*H2+$B3*H3+$B4*H4+$B5*H5+$B6*H6+$B7*H7+$B8*H8+$B9*H9+$B10*H10+$B11*H11+$B12*H12+$B13*H13+$B14*H14+$B15*H15+$B16*H16+$B17*H17+$B18*H18+$B19*H19+$B20*H20 -> 760.7142857 | I22: =$B2*I2+$B3*I3+$B4*I4+$B5*I5+$B6*I6+$B7*I7+$B8*I8+$B9*I9+$B10*I10+$B11*I11+$B12*I12+$B13*I13+$B14*I14+$B15*I15+$B16*I16+$B17*I17+$B18*I18+$B19*I19+$B20*I20 -> 3767.142857 | J22: =$B2*J2+$B3*J3+$B4*J4+$B5*J5+$B6*J6+$B7*J7+$B8*J8+$B9*J9+$B10*J10+$B11*J11+$B12*J12+$B13*J13+$B14*J14+$B15*J15+$B16*J16+$B17*J17+$B18*J18+$B19*J19+$B20*J20 -> 2772.857143 | K22: =$B2*K2+$B3*K3+$B4*K4+$B5*K5+$B6*K6+$B7*K7+$B8*K8+$B9*K9+$B10*K10+$B11*K11+$B12*K12+$B13*K13+$B14*K14+$B15*K15+$B16*K16+$B17*K17+$B18*K18+$B19*K19+$B20*K20 -> 574.2857143 | L22: =$B2*L2+$B3*L3+$B4*L4+$B5*L5+$B6*L6+$B7*L7+$B8*L8+$B9*L9+$B10*L10+$B11*L11+$B12*L12+$B13*L13+$B14*L14+$B15*L15+$B16*L16+$B17*L17+$B18*L18+$B19*L19+$B20*L20 -> 831.4285714 | M22: 14142.85714 | N22: 7071.428571 | O22: 2357.142857 | P22: 11785.71429 | Q22: =$B2*Q2+$B3*Q3+$B4*Q4+$B5*Q5+$B6*Q6+$B7*Q7+$B8*Q8+$B9*Q9+$B10*Q10+$B11*Q11+$B12*Q12+$B13*Q13+$B14*Q14+$B15*Q15+$B16*Q16+$B17*Q17+$B18*Q18+$B19*Q19+$B20*Q20 -> 1401.428571 | R22: =$B2*R2+$B3*R3+$B4*R4+$B5*R5+$B6*R6+$B7*R7+$B8*R8+$B9*R9+$B10*R10+$B11*R11+$B12*R12+$B13*R13+$B14*R14+$B15*R15+$B16*R16+$B17*R17+$B18*R18+$B19*R19+$B20*R20 -> 420 | S22: =$B2*S2+$B3*S3+$B4*S4+$B5*S5+$B6*S6+$B7*S7+$B8*S8+$B9*S9+$B10*S10+$B11*S11+$B12*S12+$B13*S13+$B14*S14+$B15*S15+$B16*S16+$B17*S17+$B18*S18+$B19*S19+$B20*S20 -> 762.8571429 | T22: =$B2*T2+$B3*T3+$B4*T4+$B5*T5+$B6*T6+$B7*T7+$B8*T8+$B9*T9+$B10*T10+$B11*T11+$B12*T12+$B13*T13+$B14*T14+$B15*T15+$B16*T16+$B17*T17+$B18*T18+$B19*T19+$B20*T20 -> 797.1428571 | U22: 14020.2381 | V22: 13943.33333 | W22: 12589.04762 | X22: =$B2*X2+$B3*X3+$B4*X4+$B5*X5+$B6*X6+$B7*X7+$B8*X8+$B9*X9+$B10*X10+$B11*X11+$B12*X12+$B13*X13+$B14*X14+$B15*X15+$B16*X16+$B17*X17+$B18*X18+$B19*X19+$B20*X20 -> 1071.428571 | Y22: 193469.5238 | Z22: =$B2*Z2+$B3*Z3+$B4*Z4+$B5*Z5+$B6*Z6+$B7*Z7+$B8*Z8+$B9*Z9+$B10*Z10+$B11*Z11+$B12*Z12+$B13*Z13+$B14*Z14+$B15*Z15+$B16*Z16+$B17*Z17+$B18*Z18+$B19*Z19+$B20*Z20 -> 2258222.857 | AA22: 87947.61905 | AB22: 66882.53968 | AC22: 1166976.984 | AD22: 3527.904762 | AE22: 16094.47619 | AF22: 16630 | AG22: 2775.047619 | AH22: 3574.095238 | AI22: 49774.28571 | AJ22: =$B2*AJ2+$B3*AJ3+$B4*AJ4+$B5*AJ5+$B6*AJ6+$B7*AJ7+$B8*AJ8+$B9*AJ9+$B10*AJ10+$B11*AJ11+$B12*AJ12+$B13*AJ13+$B14*AJ14+$B15*AJ15+$B16*AJ16+$B17*AJ17+$B18*AJ18+$B19*AJ19+$B20*AJ20 -> 31414.57143 | AK22: 122448.5714 | AL22: 27030.47619 | AM22: 46807.14286 | AN22: 38.57142857 | AO22: 2211.428571 | AP22: 17778.28571 | AQ22: 17778.28571 | AR22: 22636.90476 | AS22: 8813.428571 | AT22: 33712.61905 | AU22: 4516.952381 | AV22: 4073.619048 | AW22: 2443.333333 | AX22: 21454.57143 | AY22: 585.1428571 | AZ22: 1907.142857 | BA22: 1907.142857 | BB22: 3664.285714 | BC22: 3664.285714 | BD22: 9750 | BE22: 9750 | BF22: 13800 | BG22: 13800 | BH22: 2610 | BI22: 4015.714286 | BJ22: 1362.857143 | BK22: 2061.428571 | BL22: 2061.428571 | BM22: 1872.857143 | BN22: 1872.857143 | BO22: 3021.428571 | BP22: 3021.428571 | BQ22: 2318.571429 | BR22: 3420 | BS22: 11400 | BT22: 7483.333333 | BU22: 5116.190476 | BV22: 5116.190476 | BW22: 10456.19048 | BX22: 20979.04762 | BY22: 3450 | BZ22: 3609.333333 | CA22: 98821.42857 | CB22: 6424.761905 | CC22: 9642.666667
B24: Prix Vente | D24: =D22*1.331 -> 3137.357143 | E24: =E22*1.331 -> 1631.425714 | F24: =F22*1.331 -> 501.9771429 | G24: 2635.38 | H24: =H22*1.331 -> 1012.510714 | I24: =I22*1.331 -> 5014.067143 | J24: =J22*1.331 -> 3690.672857 | K24: =K22*1.331 -> 764.3742857 | L24: =L22*1.331 -> 1106.631429 | M24: 18824.14286 | N24: 9412.071429 | O24: 3137.357143 | P24: 15686.78571 | Q24: =Q22*1.331 -> 1865.301429 | R24: =R22*1.331 -> 559.02 | S24: =S22*1.331 -> 1015.362857 | T24: =T22*1.331 -> 1060.997143 | U24: 18660.9369 | V24: =V22*1.331 -> 18558.57667 | W24: 16756.02238 | X24: =X22*1.331 -> 1426.071429 | Y24: 257507.9362 | Z24: =Z22*1.331 -> 3005694.623 | AA24: 117058.281 | AB24: 89020.66032 | AC24: 1553246.366 | AD24: 4695.641238 | AE24: 21421.74781 | AF24: 22134.53 | AG24: =AG22*1.331 -> 3693.588381 | AH24: =AH22*1.331 -> 4757.120762 | AI24: =AI22*1.331 -> 66249.57429 | AJ24: =AJ22*1.331 -> 41812.79457 | AK24: 162979.0486 | AL24: 35977.56381 | AM24: 62300.30714 | AN24: 51.33857143 | AO24: 2943.411429 | AP24: 23662.89829 | AQ24: 23662.89829 | AR24: 30129.72024 | AS24: 11730.67343 | AT24: 44871.49595 | AU24: =AU22*1.331 -> 6012.063619 | AV24: =AV22*1.331 -> 5421.986952 | AW24: =AW22*1.331 -> 3252.076667 | AX24: =AX22*1.331 -> 28556.03457 | AY24: =AY22*1.331 -> 778.8251429 | AZ24: =AZ22*1.331 -> 2538.407143 | BA24: =BA22*1.331 -> 2538.407143 | BB24: 4877.164286 | BC24: =BC22*1.331 -> 4877.164286 | BD24: 12977.25 | BE24: =BE22*1.331 -> 12977.25 | BF24: 18367.8 | BG24: =BG22*1.331 -> 18367.8 | BH24: 3473.91 | BI24: 5344.915714 | BJ24: 1813.962857 | BK24: 2743.761429 | BL24: =BL22*1.331 -> 2743.761429 | BM24: 2492.772857 | BN24: =BN22*1.331 -> 2492.772857 | BO24: 4021.521429 | BP24: =BP22*1.331 -> 4021.521429 | BQ24: =BQ22*1.331 -> 3086.018571 | BR24: 4552.02 | BS24: 15173.4 | BT24: =BT22*1.331 -> 9960.316667 | BU24: =BU22*1.331 -> 6809.649524 | BV24: =BV22*1.331 -> 6809.649524 | BW24: =BW22*1.331 -> 13917.18952 | BX24: =BX22*1.331 -> 27923.11238 | BY24: =BY22*1.331 -> 4591.95 | BZ24: =BZ22*1.331 -> 4804.022667 | CA24: =CA22*1.331 -> 131531.3214 | CB24: =CB22*1.331 -> 8551.358095 | CC24: =CC22*1.331 -> 12834.38933
B25: Cours des Prix | C25: Profit 10% => | D25: =ROUNDUP(($C2*D2+$C3*D3+$C4*D4+$C5*D5+$C6*D6+$C7*D7+$C8*D8+$C9*D9+$C10*D10+$C11*D11+$C12*D12+$C13*D13+$C14*D14+$C15*D15+$C16*D16+$C17*D17+$C18*D18+$C19*D19+$C20*D20)*1.1,0) -> 3328 | E25: =ROUNDUP(($C2*E2+$C3*E3+$C4*E4+$C5*E5+$C6*E6+$C7*E7+$C8*E8+$C9*E9+$C10*E10+$C11*E11+$C12*E12+$C13*E13+$C14*E14+$C15*E15+$C16*E16+$C17*E17+$C18*E18+$C19*E19+$C20*E20)*1.1,0) -> 1731 | F25: =ROUNDUP(($C2*F2+$C3*F3+$C4*F4+$C5*F5+$C6*F6+$C7*F7+$C8*F8+$C9*F9+$C10*F10+$C11*F11+$C12*F12+$C13*F13+$C14*F14+$C15*F15+$C16*F16+$C17*F17+$C18*F18+$C19*F19+$C20*F20)*1.1,0) -> 533 | G25: 2796 | H25: =ROUNDUP(($C2*H2+$C3*H3+$C4*H4+$C5*H5+$C6*H6+$C7*H7+$C8*H8+$C9*H9+$C10*H10+$C11*H11+$C12*H12+$C13*H13+$C14*H14+$C15*H15+$C16*H16+$C17*H17+$C18*H18+$C19*H19+$C20*H20)*1.1,0) -> 1100 | I25: =ROUNDUP(($C2*I2+$C3*I3+$C4*I4+$C5*I5+$C6*I6+$C7*I7+$C8*I8+$C9*I9+$C10*I10+$C11*I11+$C12*I12+$C13*I13+$C14*I14+$C15*I15+$C16*I16+$C17*I17+$C18*I18+$C19*I19+$C20*I20)*1.1,0) -> 5417 | J25: =ROUNDUP(($C2*J2+$C3*J3+$C4*J4+$C5*J5+$C6*J6+$C7*J7+$C8*J8+$C9*J9+$C10*J10+$C11*J11+$C12*J12+$C13*J13+$C14*J14+$C15*J15+$C16*J16+$C17*J17+$C18*J18+$C19*J19+$C20*J20)*1.1,0) -> 3996 | K25: =ROUNDUP(($C2*K2+$C3*K3+$C4*K4+$C5*K5+$C6*K6+$C7*K7+$C8*K8+$C9*K9+$C10*K10+$C11*K11+$C12*K12+$C13*K13+$C14*K14+$C15*K15+$C16*K16+$C17*K17+$C18*K18+$C19*K19+$C20*K20)*1.1,0) -> 828 | L25: =ROUNDUP(($C2*L2+$C3*L3+$C4*L4+$C5*L5+$C6*L6+$C7*L7+$C8*L8+$C9*L9+$C10*L10+$C11*L11+$C12*L12+$C13*L13+$C14*L14+$C15*L15+$C16*L16+$C17*L17+$C18*L18+$C19*L19+$C20*L20)*1.1,0) -> 1197 | M25: 19965 | N25: 9983 | O25: 3328 | P25: 16638 | Q25: =ROUNDUP(($C2*Q2+$C3*Q3+$C4*Q4+$C5*Q5+$C6*Q6+$C7*Q7+$C8*Q8+$C9*Q9+$C10*Q10+$C11*Q11+$C12*Q12+$C13*Q13+$C14*Q14+$C15*Q15+$C16*Q16+$C17*Q17+$C18*Q18+$C19*Q19+$C20*Q20)*1.1,0) -> 2008 | R25: =ROUNDUP(($C2*R2+$C3*R3+$C4*R4+$C5*R5+$C6*R6+$C7*R7+$C8*R8+$C9*R9+$C10*R10+$C11*R11+$C12*R12+$C13*R13+$C14*R14+$C15*R15+$C16*R16+$C17*R17+$C18*R18+$C19*R19+$C20*R20)*1.1,0) -> 597 | S25: =ROUNDUP(($C2*S2+$C3*S3+$C4*S4+$C5*S5+$C6*S6+$C7*S7+$C8*S8+$C9*S9+$C10*S10+$C11*S11+$C12*S12+$C13*S13+$C14*S14+$C15*S15+$C16*S16+$C17*S17+$C18*S18+$C19*S19+$C20*S20)*1.1,0) -> 1083 | T25: =ROUNDUP(($C2*T2+$C3*T3+$C4*T4+$C5*T5+$C6*T6+$C7*T7+$C8*T8+$C9*T9+$C10*T10+$C11*T11+$C12*T12+$C13*T13+$C14*T14+$C15*T15+$C16*T16+$C17*T17+$C18*T18+$C19*T19+$C20*T20)*1.1,0) -> 1151 | U25: 18986 | V25: 18821 | W25: 17006 | X25: =ROUNDUP(($C2*X2+$C3*X3+$C4*X4+$C5*X5+$C6*X6+$C7*X7+$C8*X8+$C9*X9+$C10*X10+$C11*X11+$C12*X12+$C13*X13+$C14*X14+$C15*X15+$C16*X16+$C17*X17+$C18*X18+$C19*X19+$C20*X20)*1.1,0) -> 1540 | Y25: 259210 | Z25: =ROUNDUP(($C2*Z2+$C3*Z3+$C4*Z4+$C5*Z5+$C6*Z6+$C7*Z7+$C8*Z8+$C9*Z9+$C10*Z10+$C11*Z11+$C12*Z12+$C13*Z13+$C14*Z14+$C15*Z15+$C16*Z16+$C17*Z17+$C18*Z18+$C19*Z19+$C20*Z20)*1.1,0) -> 3021931 | AA25: 124119 | AB25: 91423 | AC25: 1591134 | AD25: 4996 | AE25: 22813 | AF25: 23419 | AG25: 3896 | AH25: 4996 | AI25: 67954 | AJ25: =ROUNDUP(($C2*AJ2+$C3*AJ3+$C4*AJ4+$C5*AJ5+$C6*AJ6+$C7*AJ7+$C8*AJ8+$C9*AJ9+$C10*AJ10+$C11*AJ11+$C12*AJ12+$C13*AJ13+$C14*AJ14+$C15*AJ15+$C16*AJ16+$C17*AJ17+$C18*AJ18+$C19*AJ19+$C20*AJ20)*1.1,0) -> 42229 | AK25: 172612 | AL25: 37473 | AM25: 64488 | AN25: 55 | AO25: 3151 | AP25: 25107 | AQ25: 25107 | AR25: 30800 | AS25: 12356 | AT25: 47539 | AU25: 6340 | AV25: 5737 | AW25: 3410 | AX25: 28774 | AY25: 820 | AZ25: 2712 | BA25: 2712 | BB25: 5209 | BC25: 5209 | BD25: 13855 | BE25: 13855 | BF25: 19611 | BG25: 19611 | BH25: 3711 | BI25: 5708 | BJ25: 1939 | BK25: 2932 | BL25: 2932 | BM25: 2664 | BN25: 2664 | BO25: 4296 | BP25: 4296 | BQ25: 3288 | BR25: 4851 | BS25: 16170 | BT25: 10643 | BU25: 7170 | BV25: 7170 | BW25: 14577 | BX25: 29355 | BY25: 4979 | BZ25: 5079 | CA25: 134819 | CB25: 8936 | CC25: 13383
A27: Modèle | B27: Coût de base | C27: Prix de Vente Cours des prix (Profit 40%) | D27: Quantité | CD27: Coût de Base | CF27: Coût Éléments de construction (21%) | CG27: Coût Éléments de construction (21%) Cours des Prix | CH27: Prix de Vente Majoration
A28: Test | B28: =CD28 -> 4658987.429 | C28: =ROUND(CG28*1.4,-3) -> 7961000 | D28: 19 | E28: 1 | F28: 1 | G28: 1 | H28: 1 | I28: 1 | J28: 1 | K28: 1 | L28: 1 | M28: 1 | N28: 1 | O28: 1 | P28: 1 | Q28: 1 | R28: 1 | S28: 1 | T28: 1 | U28: 1 | V28: 1 | W28: 1 | X28: 1 | Y28: 1 | Z28: 1 | AA28: 1 | AB28: 1 | AC28: 1 | AD28: 1 | AE28: 1 | AF28: 1 | AG28: 1 | AH28: 1 | AI28: 1 | AJ28: 1 | AK28: 1 | AL28: 1 | AM28: 1 | AN28: 1 | AO28: 1 | AP28: 1 | AQ28: 1 | AR28: 1 | AS28: 1 | AT28: 1 | AU28: 1 | AV28: 1 | AW28: 1 | AX28: 1 | AY28: 1 | AZ28: 1 | BA28: 1 | BB28: 1 | BC28: 1 | BD28: 1 | BE28: 2 | BF28: 2 | BG28: 1 | BH28: 1 | BI28: 1 | BJ28: 1 | BK28: 1 | BL28: 1 | BM28: 1 | BN28: 1 | BO28: 1 | BP28: 1 | BQ28: 1 | BR28: 1 | BS28: 1 | BT28: 1 | BU28: 1 | BV28: 1 | BW28: 1 | BX28: 1 | BY28: 1 | BZ28: 1 | CA28: 1 | CB28: 1 | CC28: 1 | CD28: =AF$22*AF28+BT$22*BT28+AD$22*AD28+AE$22*AE28+AJ$22*AJ28+AO$22*AO28+AP$22*AP28+AQ$22*AQ28+AR$22*AR28+AX$22*AX28+H$22*H28+BY$22*BY28+I$22*I28+J$22*J28+K$22*K28+L$22*L28+Q$22*Q28+S$22*S28+R$22*R28+BZ$22*BZ28+T$22*T28+CA$22*CA28+AK$22*AK28+AL$22*AL28+AM$22*AM28+AN$22*AN28+CB$22*CB28+CC$22*CC28+AW$22*AW28+D$22*D28+E$22*E28+F$22*F28+G$22*G28+M$22*M28+N$22*N28+O$22*O28+P$22*P28+U$22*U28+Y$22*Y28+Z$22*Z28+AA$22*AA28+AB$22*AB28+AC$22*AC28+AH$22*AH28+V$22*V28+W$22*W28+AI$22*AI28+AZ$22*AZ28+BB$22*BB28+BD$22*BD28+BF$22*BF28+BH$22*BH28+BI$22*BI28+BJ$22*BJ28+BK$22*BK28+BM$22*BM28+BO$22*BO28+BU$22*BU28+BW$22*BW28+BX$22*BX28+BQ$22*BQ28+BR$22*BR28+BS$22*BS28+AY$22*AY28+AS$22*AS28+BV$22*BV28+AG$22*AG28+AT$22*AT28+AV$22*AV28+AU$22*AU28+X22*X28+BA22*BA28+BC22*BC28+BE22*BE28+BG22*BG28+BL22*BL28+BN22*BN28+BP22*BP28 -> 4658987.429 | CF28: =CD28*1.21 -> 5637374.789 | CG28: =(AF$25*AF28+BT$25*BT28+AD$25*AD28+AE$25*AE28+AJ$25*AJ28+AO$25*AO28+AP$25*AP28+AQ$25*AQ28+AR$25*AR28+AX$25*AX28+H$25*H28+BY$25*BY28+I$25*I28+J$25*J28+K$25*K28+L$25*L28+Q$25*Q28+S$25*S28+R$25*R28+BZ$25*BZ28+T$25*T28+CA$25*CA28+AK$25*AK28+AL$25*AL28+AM$25*AM28+AN$25*AN28+CB$25*CB28+CC$25*CC28+AW$25*AW28+D$25*D28+E$25*E28+F$25*F28+G$25*G28+M$25*M28+N$25*N28+O$25*O28+P$25*P28+U$25*U28+Y$25*Y28+Z$25*Z28+AA$25*AA28+AB$25*AB28+AC$25*AC28+AH$25*AH28+V$25*V28+W$25*W28+AI$25*AI28+AZ$25*AZ28+BB$25*BB28+BD$25*BD28+BF$25*BF28+BH$25*BH28+BI$25*BI28+BJ$25*BJ28+BK$25*BK28+BM$25*BM28+BO$25*BO28+BU$25*BU28+BW$25*BW28+BX$25*BX28+BQ$25*BQ28+BR$25*BR28+BS$25*BS28+AY$25*AY28+AS$25*AS28+BV$25*BV28+AG$25*AG28+AT$25*AT28+AV$25*AV28+AU$25*AU28)/1.1 -> 5686320.909 | CH28: =CD28*1.331 -> 6201112.267
B29: =CD29 -> 0 | C29: =ROUND(CG29*1.4,-3) -> 0 | CD29: =AF$22*AF29+BT$22*BT29+AD$22*AD29+AE$22*AE29+AJ$22*AJ29+AO$22*AO29+AP$22*AP29+AQ$22*AQ29+AR$22*AR29+AX$22*AX29+H$22*H29+BY$22*BY29+I$22*I29+J$22*J29+K$22*K29+L$22*L29+Q$22*Q29+S$22*S29+R$22*R29+BZ$22*BZ29+T$22*T29+CA$22*CA29+AK$22*AK29+AL$22*AL29+AM$22*AM29+AN$22*AN29+CB$22*CB29+CC$22*CC29+AW$22*AW29+D$22*D29+E$22*E29+F$22*F29+G$22*G29+M$22*M29+N$22*N29+O$22*O29+P$22*P29+U$22*U29+Y$22*Y29+Z$22*Z29+AA$22*AA29+AB$22*AB29+AC$22*AC29+AH$22*AH29+V$22*V29+W$22*W29+AI$22*AI29+AZ$22*AZ29+BB$22*BB29+BD$22*BD29+BF$22*BF29+BH$22*BH29+BI$22*BI29+BJ$22*BJ29+BK$22*BK29+BM$22*BM29+BO$22*BO29+BU$22*BU29+BW$22*BW29+BX$22*BX29+BQ$22*BQ29+BR$22*BR29+BS$22*BS29+AY$22*AY29+AS$22*AS29+BV$22*BV29+AG$22*AG29+AT$22*AT29+AV$22*AV29+AU$22*AU29+X23*X29+BA23*BA29+BC23*BC29+BE23*BE29+BG23*BG29+BL23*BL29+BN23*BN29+BP23*BP29 -> 0 | CF29: =CD29*1.21 -> 0 | CG29: =(AF$25*AF29+BT$25*BT29+AD$25*AD29+AE$25*AE29+AJ$25*AJ29+AO$25*AO29+AP$25*AP29+AQ$25*AQ29+AR$25*AR29+AX$25*AX29+H$25*H29+BY$25*BY29+I$25*I29+J$25*J29+K$25*K29+L$25*L29+Q$25*Q29+S$25*S29+R$25*R29+BZ$25*BZ29+T$25*T29+CA$25*CA29+AK$25*AK29+AL$25*AL29+AM$25*AM29+AN$25*AN29+CB$25*CB29+CC$25*CC29+AW$25*AW29+D$25*D29+E$25*E29+F$25*F29+G$25*G29+M$25*M29+N$25*N29+O$25*O29+P$25*P29+U$25*U29+Y$25*Y29+Z$25*Z29+AA$25*AA29+AB$25*AB29+AC$25*AC29+AH$25*AH29+V$25*V29+W$25*W29+AI$25*AI29+AZ$25*AZ29+BB$25*BB29+BD$25*BD29+BF$25*BF29+BH$25*BH29+BI$25*BI29+BJ$25*BJ29+BK$25*BK29+BM$25*BM29+BO$25*BO29+BU$25*BU29+BW$25*BW29+BX$25*BX29+BQ$25*BQ29+BR$25*BR29+BS$25*BS29+AY$25*AY29+AS$25*AS29+BV$25*BV29+AG$25*AG29+AT$25*AT29+AV$25*AV29+AU$25*AU29)/1.1 -> 0 | CH29: =CD29*1.331 -> 0
B30: 0 | C30: 0 | CD30: 0 | CF30: =CD30*1.21 -> 0 | CG30: 0 | CH30: 0
B31: 0 | C31: 0 | CD31: 0 | CF31: 0 | CG31: 0 | CH31: 0
B32: 0 | C32: 0 | CD32: 0 | CF32: 0 | CG32: 0 | CH32: 0
B33: 0 | C33: 0 | CD33: 0 | CF33: 0 | CG33: 0 | CH33: 0
B34: 0 | C34: 0 | CD34: 0 | CF34: 0 | CG34: 0 | CH34: 0
B35: 0 | C35: 0 | CD35: 0 | CF35: 0 | CG35: 0 | CH35: 0
B36: 0 | C36: 0 | CD36: 0 | CF36: 0 | CG36: 0 | CH36: 0
B37: =CD37 -> 0 | C37: 0 | CD37: =AF$22*AF37+BT$22*BT37+AD$22*AD37+AE$22*AE37+AJ$22*AJ37+AO$22*AO37+AP$22*AP37+AQ$22*AQ37+AR$22*AR37+AX$22*AX37+H$22*H37+BY$22*BY37+I$22*I37+J$22*J37+K$22*K37+L$22*L37+Q$22*Q37+S$22*S37+R$22*R37+BZ$22*BZ37+T$22*T37+CA$22*CA37+AK$22*AK37+AL$22*AL37+AM$22*AM37+AN$22*AN37+CB$22*CB37+CC$22*CC37+AW$22*AW37+D$22*D37+E$22*E37+F$22*F37+G$22*G37+M$22*M37+N$22*N37+O$22*O37+P$22*P37+U$22*U37+Y$22*Y37+Z$22*Z37+AA$22*AA37+AB$22*AB37+AC$22*AC37+AH$22*AH37+V$22*V37+W$22*W37+AI$22*AI37+AZ$22*AZ37+BB$22*BB37+BD$22*BD37+BF$22*BF37+BH$22*BH37+BI$22*BI37+BJ$22*BJ37+BK$22*BK37+BM$22*BM37+BO$22*BO37+BU$22*BU37+BW$22*BW37+BX$22*BX37+BQ$22*BQ37+BR$22*BR37+BS$22*BS37+AY$22*AY37+AS$22*AS37+BV$22*BV37+AG$22*AG37+AT$22*AT37+AV$22*AV37+AU$22*AU37+X31*X37+BA31*BA37+BC31*BC37+BE31*BE37+BG31*BG37+BL31*BL37+BN31*BN37+BP31*BP37 -> 0 | CF37: =CD37*1.21 -> 0 | CG37: =(AF$25*AF37+BT$25*BT37+AD$25*AD37+AE$25*AE37+AJ$25*AJ37+AO$25*AO37+AP$25*AP37+AQ$25*AQ37+AR$25*AR37+AX$25*AX37+H$25*H37+BY$25*BY37+I$25*I37+J$25*J37+K$25*K37+L$25*L37+Q$25*Q37+S$25*S37+R$25*R37+BZ$25*BZ37+T$25*T37+CA$25*CA37+AK$25*AK37+AL$25*AL37+AM$25*AM37+AN$25*AN37+CB$25*CB37+CC$25*CC37+AW$25*AW37+D$25*D37+E$25*E37+F$25*F37+G$25*G37+M$25*M37+N$25*N37+O$25*O37+P$25*P37+U$25*U37+Y$25*Y37+Z$25*Z37+AA$25*AA37+AB$25*AB37+AC$25*AC37+AH$25*AH37+V$25*V37+W$25*W37+AI$25*AI37+AZ$25*AZ37+BB$25*BB37+BD$25*BD37+BF$25*BF37+BH$25*BH37+BI$25*BI37+BJ$25*BJ37+BK$25*BK37+BM$25*BM37+BO$25*BO37+BU$25*BU37+BW$25*BW37+BX$25*BX37+BQ$25*BQ37+BR$25*BR37+BS$25*BS37+AY$25*AY37+AS$25*AS37+BV$25*BV37+AG$25*AG37+AT$25*AT37+AV$25*AV37+AU$25*AU37)/1.1 -> 0 | CH37: 0
B38: 0 | C38: 0 | CD38: 0 | CF38: 0 | CG38: 0 | CH38: 0
B39: 0 | C39: 0 | CD39: 0 | CF39: 0 | CG39: 0 | CH39: 0
B40: 0 | C40: 0 | CD40: 0 | CF40: 0 | CG40: 0 | CH40: 0
B41: 0 | C41: 0 | CD41: 0 | CF41: 0 | CG41: 0 | CH41: 0
